bitfinex/quotes_SOLUSD_20250529
["timestamp","ask_amount","ask_price","bid_price","bid_amount"]
[1748490637151,89.5,173.53,173.5,24.41326294]
[1748490639642,89.5,173.53,173.51,9.64]
[1748490640751,89.5,173.53,173.51,15.40331064]
[1748490641127,89.5,173.53,173.51,9.64]
[1748490643352,89.5,173.53,173.51,15.40335312]
[1748490646550,89.5,173.57,173.52,18.64964886]
[1748490646856,89.5,173.58,173.52,18.64964886]
[1748490647046,89.5,173.58,173.53,5.76269232]
[1748490647960,95.26105501,173.58,173.53,5.76269232]
[1748490649028,95.26105501,173.58,173.52,24.4125897]
[1748490649230,1.5254,173.56,173.51,9.64]
[1748490650153,5.76202823,173.55,173.51,9.64]
[1748490650356,41.86202823,173.55,173.51,9.64]
[1748490652458,36.1,173.55,173.51,9.64]
[1748490652959,89.5,173.54,173.51,9.64]
[1748490653262,89.5,173.54,173.51,15.40335202]
[1748490653458,89.5,173.54,173.52,18.64964886]
[1748490654370,89.5,173.54,173.52,24.412578]
[1748490654667,89.5,173.54,173.52,18.64964886]
[1748490664684,89.5,173.54,173.52,24.41258712]
[1748490664876,89.5,173.57,173.52,24.41258712]
[1748490666856,89.5,173.57,173.55,26.0]
[1748490667989,95.26146609,173.57,173.54,18.64964886]
[1748490668292,95.26146609,173.57,173.52,18.64964886]
[1748490668660,131.32146609,173.57,173.52,18.64964886]
[1748490668855,131.32146609,173.57,173.51,9.64]
[1748490669059,1.5784,173.55,173.51,9.62]
[1748490669260,37.6384,173.55,173.51,9.62]
[1748490671888,43.40050811,173.55,173.51,9.62]
[1748490672063,89.5,173.54,173.51,9.62]
[1748490673779,95.26241374,173.54,173.51,9.62]
[1748490674082,89.5,173.54,173.51,9.62]
[1748490675690,89.5,173.54,173.52,18.64964886]
[1748490676192,89.5,173.58,173.54,18.64964886]
[1748490677092,89.5,173.58,173.54,24.41193021]
[1748490679675,89.5,173.58,173.54,18.64964886]
[1748490680384,95.26105196,173.58,173.54,18.64964886]
[1748490680996,89.5,173.58,173.54,18.64964886]
[1748490681600,89.5,173.58,173.54,24.41197359]
[1748490684475,89.5,173.58,173.54,18.64964886]
[1748490685672,95.2610676,173.58,173.54,18.64964886]
[1748490685870,89.5,173.58,173.54,18.64964886]
[1748490686289,89.5,173.58,173.54,24.41197908]
[1748490689900,89.5,173.58,173.55,0.14216157]
[1748490691181,89.5,173.58,173.57,18.64964886]
[1748490691387,89.5,173.58,173.57,31.11350176]
[1748490691707,89.5,173.61,173.57,31.11350176]
[1748490696006,89.5,173.61,173.6,44.64964886]
[1748490697283,131.2784541,173.66,173.61,18.64964886]
[1748490697488,89.5,173.65,173.61,18.64964886]
[1748490699017,95.25887134,173.65,173.61,18.64964886]
[1748490700907,36.0,173.64,173.58,26.0]
[1748490701088,36.0,173.64,173.62,0.10606088]
[1748490702600,41.7593634,173.64,173.62,0.10606088]
[1748490703103,89.5,173.63,173.62,0.10606088]
[1748490707308,95.25937338,173.63,173.62,0.10606088]
[1748490708212,89.5,173.63,173.62,0.10606088]
[1748490714010,95.25937338,173.63,173.62,0.10606088]
[1748490714922,5.75871004,173.65,173.62,0.10606088]
[1748490720799,89.5,173.64,173.62,0.10606088]
[1748490722296,95.25909471,173.64,173.62,0.10606088]
[1748490722522,89.5,173.66,173.64,18.64964886]
[1748490723014,89.5,173.66,173.65,0.11823805]
[1748490723216,89.5,173.7,173.65,0.11823805]
[1748490723403,89.5,173.69,173.65,0.11823805]
[1748490724722,95.25744162,173.69,173.65,0.11823805]
[1748490726234,89.5,173.69,173.65,0.11823805]
[1748490726722,95.25741687,173.69,173.65,0.11823805]
[1748490727338,89.5,173.69,173.65,0.11823805]
[1748490727544,5.75611092,173.73,173.68,18.64964886]
[1748490727709,89.5,173.74,173.68,18.64964886]
[1748490727710,95.25575335,173.74,173.69,9.56]
[1748490728011,6.0681,173.76,173.7,18.64964886]
[1748490728012,5.75545418,173.75,173.7,18.64964886]
[1748490728211,11.82321144,173.76,173.7,44.76785287]
[1748490728433,96.76291236,173.77,173.7,44.64964886]
[1748490728640,95.25481236,173.77,173.7,44.64964886]
[1748490728798,89.5,173.77,173.7,44.64964886]
[1748490729004,10.0,173.9,173.7,44.64964886]
[1748490729005,5.75043128,173.9,173.75,0.14216157]
[1748490729308,5.75043128,173.9,173.8,44.64964886]
[1748490729715,5.75043128,173.9,173.8,81.14964886]
[1748490730041,6.3056,173.91,173.8,81.14964886]
[1748490730236,6.3056,173.91,173.81,0.14216157]
[1748490730523,36.48,173.93,173.85,26.0]
[1748490730700,5.74910888,173.94,173.86,18.64964886]
[1748490731102,5.74910888,173.94,173.82,9.84432314]
[1748490731103,20.1218811,173.94,173.83,18.933972]
[1748490731327,20.1218811,173.94,173.83,44.79181043]
[1748490731502,20.1218811,173.94,173.83,44.64964886]
[1748490731704,20.1218811,173.94,173.84,0.10531149]
[1748490731945,5.74977,173.92,173.84,0.10531149]
[1748490732107,0.14216157,173.91,173.84,0.10531149]
[1748490733102,20.12650948,173.9,173.84,0.10531149]
[1748490733302,26.14216157,173.89,173.84,0.10531149]
[1748490733528,26.0,173.87,173.84,0.10531149]
[1748490733846,6.3137,173.86,173.84,0.10531149]
[1748490734027,0.14216157,173.85,173.84,0.10531149]
[1748490734336,36.58216157,173.85,173.84,0.10531149]
[1748490734633,36.58216157,173.85,173.81,0.09049975]
[1748490735130,36.58216157,173.85,173.81,0.0826135]
[1748490735322,5.75241601,173.84,173.81,0.0826135]
[1748490737126,5.75307789,173.82,173.81,0.0826135]
[1748490739455,5.75241601,173.84,173.81,0.0826135]
[1748490741552,89.5,173.83,173.81,0.0826135]
[1748490742058,5.75307789,173.82,173.81,0.0826135]
[1748490743551,95.25276054,173.83,173.81,0.0826135]
[1748490747550,95.25307789,173.82,173.81,0.0826135]
[1748490753451,95.25307789,173.82,173.76,9.56]
[1748490753452,89.4173865,173.8,173.76,9.56]
[1748490753658,89.4173865,173.79,173.76,9.56]
[1748490753957,95.17156673,173.79,173.76,9.56]
[1748490755257,89.4173865,173.78,173.76,9.56]
[1748490755896,89.4173865,173.78,173.72,26.0]
[1748490756061,95.17211976,173.77,173.71,9.78]
[1748490756566,89.4173865,173.76,173.71,9.78]
[1748490758140,95.17274683,173.76,173.7,18.64964886]
[1748490758376,95.17274683,173.76,173.71,9.78]
[1748490758666,89.4173865,173.76,173.71,9.78]
[1748490759548,95.17249991,173.76,173.71,9.78]
[1748490762177,89.4173865,173.75,173.71,9.78]
[1748490762558,89.4173865,173.74,173.71,9.78]
[1748490762864,125.5773865,173.73,173.66,92.58]
[1748490763064,89.4173865,173.72,173.66,92.58]
[1748490764175,5.75672097,173.71,173.66,92.58]
[1748490768159,95.17467783,173.7,173.66,92.58]
[1748490769569,131.25467783,173.7,173.66,92.58]
[1748490770684,131.25467783,173.7,173.66,9.78]
[1748490770984,131.25467783,173.7,173.64,9.78]
[1748490771968,237.9173865,173.69,173.64,9.78]
[1748490772278,89.4173865,173.68,173.64,9.78]
[1748490773190,95.17531648,173.68,173.64,9.78]
[1748490776068,36.02,173.67,173.64,9.78]
[1748490776279,89.4173865,173.66,173.64,9.78]
[1748490777673,5.75871004,173.65,173.64,9.78]
[1748490778277,5.75871004,173.65,173.6,0.06229506]
[1748490778569,89.5,173.64,173.61,9.62]
[1748490782809,95.25909523,173.64,173.61,9.62]
[1748490783101,89.5,173.63,173.61,9.62]
[1748490786488,89.5,173.63,173.62,44.64964886]
[1748490786695,148.5,173.69,173.58,1.5633]
[1748490786696,35.98,173.66,173.58,1.5633]
[1748490786915,131.7709,173.65,173.57,2.85259074]
[1748490787102,89.5,173.64,173.57,2.85259074]
[1748490787407,89.5,173.64,173.56,9.62]
[1748490787613,89.5,173.63,173.56,9.62]
[1748490787895,35.98,173.62,173.56,9.62]
[1748490788101,35.98,173.62,173.56,12.53631543]
[1748490788298,5.76003686,173.61,173.56,12.53631543]
[1748490791785,5.7607005,173.59,173.56,12.53631543]
[1748490791979,89.5,173.58,173.56,12.53631543]
[1748490796195,89.5,173.57,173.56,9.62]
[1748490797208,95.26136429,173.57,173.56,9.62]
[1748490799405,89.5,173.57,173.56,9.62]
[1748490800704,41.74096157,173.59,173.56,9.62]
[1748490800932,148.5,173.61,173.56,9.62]
[1748490801602,148.5,173.61,173.57,18.64964886]
[1748490801909,89.5,173.6,173.57,18.64964886]
[1748490803182,89.5,173.6,173.59,44.64964886]
[1748490803386,89.5,173.6,173.59,44.79181043]
[1748490803586,89.5,173.65,173.6,18.64964886]
[1748490805715,95.25878944,173.65,173.6,18.64964886]
[1748490806007,89.5,173.65,173.6,18.64964886]
[1748490807713,95.25871744,173.65,173.6,18.64964886]
[1748490808030,95.25871744,173.65,173.6,26.0]
[1748490808327,95.25871744,173.65,173.57,44.64964886]
[1748490809490,95.25932995,173.64,173.57,44.64964886]
[1748490811215,95.25932995,173.64,173.58,9.56]
[1748490812623,95.25932995,173.64,173.61,26.0]
[1748490812624,89.5,173.64,173.61,26.0]
[1748490814823,89.5,173.64,173.59,18.64964886]
[1748490815494,89.5,173.63,173.59,18.64964886]
[1748490815905,89.5,173.63,173.58,35.56]
[1748490818218,95.2594323,173.63,173.58,35.56]
[1748490818795,95.2594323,173.63,173.58,9.56]
[1748490819207,89.5,173.63,173.58,9.56]
[1748490819925,89.5,173.62,173.58,9.56]
[1748490824322,89.5,173.61,173.58,9.56]
[1748490831424,89.5,173.61,173.6,12.15378761]
[1748490832340,89.5,173.61,173.6,21.71378761]
[1748490835031,89.5,173.61,173.6,9.56]
[1748490835214,89.5,173.61,173.6,21.71378761]
[1748490836020,89.5,173.66,173.63,26.0]
[1748490836418,89.5,173.66,173.65,12.15378761]
[1748490838950,89.5,173.66,173.63,26.0]
[1748490839149,89.5,173.66,173.65,12.15378761]
[1748490845026,47.92867919,173.69,173.65,12.15378761]
[1748490846925,12.15378761,173.66,173.58,9.56]
[1748490847122,12.15378761,173.62,173.58,9.56]
[1748490847362,89.5,173.61,173.58,9.56]
[1748490848063,12.15378761,173.61,173.58,9.56]
[1748490848934,5.76036866,173.6,173.58,9.56]
[1748490850644,5.76036866,173.6,173.56,95.03378761]
[1748490851030,89.5,173.59,173.56,95.03378761]
[1748490852850,89.5,173.59,173.55,12.39564043]
[1748490853156,89.5,173.59,173.56,12.15378761]
[1748490853157,95.26089186,173.59,173.56,12.15378761]
[1748490855637,89.5,173.59,173.56,12.15378761]
[1748490856137,95.26070173,173.59,173.56,12.15378761]
[1748490856848,89.5,173.58,173.56,12.15378761]
[1748490857049,89.5,173.57,173.56,12.15378761]
[1748490862276,89.5,173.57,173.55,12.39564043]
[1748490862464,89.5,173.57,173.55,24.54942804]
[1748490862855,89.5,173.56,173.55,24.54942804]
[1748490864339,89.5,173.56,173.55,12.39564043]
[1748490864557,89.5,173.56,173.55,24.54942804]
[1748490866378,12.15378761,173.57,173.55,9.56]
[1748490866683,5.76169624,173.56,173.55,9.56]
[1748490868345,41.72144405,173.57,173.55,9.56]
[1748490869563,35.96,173.57,173.55,9.56]
[1748490870974,12.15378761,173.59,173.55,9.56]
[1748490870975,5.76080386,173.59,173.56,12.15378761]
[1748490871175,160.65378761,173.6,173.56,12.15378761]
[1748490871364,12.15378761,173.59,173.55,9.56]
[1748490871569,154.26046355,173.6,173.55,9.56]
[1748490871781,12.15378761,173.59,173.55,9.56]
[1748490872275,154.26046355,173.6,173.55,21.71378761]
[1748490872477,154.26046355,173.6,173.56,12.15378761]
[1748490875956,166.41425116,173.6,173.55,21.71378761]
[1748490876867,160.65378761,173.6,173.55,21.71378761]
[1748490877169,148.5,173.6,173.56,12.15378761]
[1748490877677,89.5,173.6,173.58,12.15378761]
[1748490877879,89.5,173.6,173.55,9.56]
[1748490877880,89.5,173.6,173.59,12.15378761]
[1748490878770,89.5,173.63,173.59,12.15378761]
[1748490879083,89.5,173.63,173.61,12.15378761]
[1748490880779,89.5,173.63,173.6,12.15378761]
[1748490882268,89.5,173.63,173.58,26.0]
[1748490882471,89.5,173.63,173.6,12.15378761]
[1748490883532,89.5,173.63,173.61,12.15378761]
[1748490885684,89.5,173.63,173.58,26.0]
[1748490885890,89.5,173.63,173.6,12.15378761]
[1748490886691,89.5,173.62,173.6,12.15378761]
[1748490889807,89.5,173.62,173.6,21.69378761]
[1748490890904,89.5,173.62,173.61,12.15378761]
[1748490897911,89.5,173.65,173.62,26.0]
[1748490898089,89.5,173.65,173.64,12.15378761]
[1748490902289,89.5,173.65,173.63,26.0]
[1748490902486,89.5,173.65,173.64,12.15378761]
[1748490903990,89.5,173.65,173.6,9.54]
[1748490904307,5.75937338,173.63,173.61,12.15378761]
[1748490909503,5.75937338,173.63,173.55,0.44199709]
[1748490909708,12.15378761,173.61,173.55,12.5957847]
[1748490909924,12.15378761,173.59,173.55,0.44199709]
[1748490910224,48.07378761,173.59,173.54,24.57541133]
[1748490911538,5.76103237,173.58,173.55,12.15378761]
[1748490914361,35.92,173.59,173.56,12.15378761]
[1748490915250,1.5939,173.61,173.57,12.15378761]
[1748490915839,13.74768761,173.61,173.56,12.15378761]
[1748490916357,19.50787376,173.61,173.56,12.15378761]
[1748490917454,7.35408615,173.61,173.56,12.15378761]
[1748490917659,19.50787376,173.61,173.56,12.15378761]
[1748490918951,89.5,173.6,173.56,12.15378761]
[1748490919162,95.26038773,173.6,173.56,12.15378761]
[1748490922647,95.26038773,173.6,173.54,12.42162372]
[1748490922857,89.5,173.6,173.56,12.15378761]
[1748490923057,95.2605286,173.6,173.54,12.42162372]
[1748490923279,95.2605286,173.6,173.56,12.15378761]
[1748490923951,89.5,173.6,173.57,12.15378761]
[1748490924858,89.5,173.59,173.57,12.15378761]
[1748490925164,89.5,173.59,173.54,12.42162372]
[1748490925165,89.5,173.59,173.58,12.15378761]
[1748490925755,89.5,173.63,173.58,12.15378761]
[1748490925963,89.5,173.63,173.6,12.15378761]
[1748490926561,11.78544743,173.65,173.62,12.15378761]
[1748490926768,5.75874743,173.65,173.62,12.15378761]
[1748490927256,95.25841586,173.66,173.62,12.15378761]
[1748490927571,95.25841586,173.66,173.63,12.15378761]
[1748490928161,95.25841586,173.66,173.62,12.15378761]
[1748490928942,95.25841586,173.66,173.63,12.15378761]
[1748490931865,95.25841586,173.66,173.6,35.52]
[1748490932082,95.25841586,173.66,173.63,12.15378761]
[1748490933979,107.41220347,173.66,173.61,12.15378761]
[1748490934685,95.25841586,173.66,173.62,12.15378761]
[1748490936685,95.25841586,173.66,173.6,35.52]
[1748490936861,89.5,173.65,173.62,12.15378761]
[1748490937062,89.5,173.65,173.61,12.15378761]
[1748490937588,101.65378761,173.65,173.6,21.67378761]
[1748490938558,12.15378761,173.64,173.6,9.52]
[1748490938759,12.15378761,173.61,173.55,21.67378761]
[1748490938977,101.65378761,173.6,173.55,21.67378761]
[1748490939766,89.5,173.6,173.56,12.15378761]
[1748490940668,89.5,173.6,173.57,12.15378761]
[1748490940866,95.26051004,173.6,173.57,12.15378761]
[1748490941066,95.26051004,173.6,173.56,12.15378761]
[1748490941890,89.5,173.6,173.57,12.15378761]
[1748490942667,89.5,173.59,173.57,12.15378761]
[1748490943976,89.5,173.59,173.56,12.15378761]
[1748490944992,89.5,173.59,173.57,12.15378761]
[1748490945376,89.5,173.59,173.58,12.15378761]
[1748490953589,89.5,173.59,173.57,12.15378761]
[1748490954883,89.5,173.59,173.58,12.15378761]
[1748490958010,89.5,173.59,173.57,7.78115876]
[1748490958993,89.5,173.59,173.56,7.78115876]
[1748490961621,89.5,173.59,173.57,7.78115876]
[1748490962635,89.5,173.59,173.56,7.78115876]
[1748490966608,89.5,173.59,173.57,7.78115876]
[1748490966808,89.5,173.59,173.58,7.78115876]
[1748490967829,89.5,173.59,173.56,35.52]
[1748490968138,89.5,173.59,173.56,43.30115876]
[1748490968510,89.5,173.59,173.57,7.78115876]
[1748490969116,89.5,173.59,173.58,7.78115876]
[1748490972626,89.5,173.59,173.56,35.52]
[1748490973129,95.26089059,173.59,173.56,35.52]
[1748490973527,89.5,173.59,173.56,43.30115876]
[1748490974130,89.5,173.59,173.57,7.78115876]
[1748490974638,89.5,173.59,173.58,7.78115876]
[1748490976356,89.5,173.59,173.58,17.30115876]
[1748490978552,89.5,173.62,173.58,17.30115876]
[1748490978744,89.5,173.62,173.61,7.78115876]
[1748490979442,89.5,173.62,173.6,7.78115876]
[1748490980166,95.25989189,173.62,173.58,17.30115876]
[1748490980927,95.25989189,173.62,173.58,9.52]
[1748490983062,95.25989189,173.62,173.58,17.30115876]
[1748490984057,89.5,173.61,173.58,17.30115876]
[1748490984866,95.26013444,173.61,173.58,17.30115876]
[1748490985359,95.26013444,173.61,173.58,9.52]
[1748490987453,89.5,173.6,173.58,9.52]
[1748490987755,133.16115876,173.6,173.58,9.52]
[1748490987938,97.28115876,173.59,173.54,3.26954303]
[1748490988139,89.5,173.58,173.54,11.05070179]
[1748490989450,95.26112226,173.58,173.54,11.05070179]
[1748490991564,97.28115876,173.57,173.54,0.38791931]
[1748490991866,7.78115876,173.56,173.54,0.38791931]
[1748490992069,133.16115876,173.57,173.54,0.38791931]
[1748490993763,5.76169624,173.56,173.54,0.38791931]
[1748490996069,89.5,173.55,173.54,0.38791931]
[1748490996373,5.76169624,173.56,173.54,0.38791931]
[1748491001174,17.92819838,173.56,173.54,0.38791931]
[1748491001751,89.5,173.55,173.54,0.38791931]
[1748491002250,95.26202823,173.55,173.54,0.38791931]
[1748491007473,17.92853037,173.55,173.54,0.38791931]
[1748491013964,13.55034285,173.55,173.54,0.38791931]
[1748491016378,13.69250442,173.55,173.54,0.38791931]
[1748491016689,15.30310442,173.55,173.54,0.38791931]
[1748491018482,15.44526599,173.55,173.54,0.38791931]
[1748491018720,15.30310442,173.55,173.54,0.38791931]
[1748491019989,7.5147898,173.55,173.54,0.38791931]
[1748491020388,7.5147898,173.55,173.49,7.78831462]
[1748491020389,89.11208069,173.51,173.49,7.78831462]
[1748491020713,89.11208069,173.5,173.48,9.5]
[1748491021004,94.87591377,173.5,173.48,9.5]
[1748491024609,89.11208069,173.5,173.48,17.28831462]
[1748491024779,89.11208069,173.5,173.48,9.5]
[1748491025099,89.11208069,173.5,173.48,17.28831462]
[1748491026779,89.11208069,173.5,173.49,7.78831462]
[1748491026986,15.99519387,173.59,173.49,7.78831462]
[1748491026987,89.11208069,173.53,173.49,7.78831462]
[1748491027199,89.11208069,173.53,173.51,7.78831462]
[1748491027392,89.11208069,173.53,173.48,35.5]
[1748491027573,94.87484424,173.53,173.49,7.78831462]
[1748491029499,89.11208069,173.53,173.5,7.78831462]
[1748491030893,94.87482241,173.53,173.5,7.78831462]
[1748491031581,94.87482241,173.53,173.48,35.5]
[1748491031785,94.87482241,173.53,173.49,7.78831462]
[1748491031987,102.66313703,173.53,173.48,43.28831462]
[1748491033507,102.66313703,173.53,173.48,35.5]
[1748491033508,7.78831462,173.52,173.48,35.5]
[1748491034500,89.11208069,173.51,173.48,35.5]
[1748491034703,5.76368876,173.5,173.48,35.5]
[1748491036383,5.76368876,173.5,173.48,9.5]
[1748491040445,89.11208069,173.49,173.48,9.5]
[1748491041143,89.11208069,173.49,173.48,17.28831462]
[1748491050945,89.11208069,173.49,173.48,9.5]
[1748491051627,94.87610167,173.49,173.48,9.5]
[1748491053152,94.87610167,173.49,173.47,2.90945124]
[1748491053456,94.87610167,173.49,173.46,17.26831462]
[1748491054353,94.87610167,173.49,173.47,7.78831462]
[1748491054554,94.87610167,173.49,173.46,9.48]
[1748491054728,94.87610167,173.49,173.46,17.26831462]
[1748491055054,94.87610167,173.49,173.47,7.78831462]
[1748491055938,89.11208069,173.49,173.47,10.69644611]
[1748491056749,94.87618701,173.49,173.47,10.69644611]
[1748491057555,89.11208069,173.49,173.47,10.69644611]
[1748491059627,89.11208069,173.49,173.48,7.78831462]
[1748491062943,94.87610167,173.49,173.48,7.78831462]
[1748491063139,94.87610167,173.49,173.47,10.69505301]
[1748491063347,94.87610167,173.49,173.47,7.78831462]
[1748491063858,89.11208069,173.49,173.47,7.78831462]
[1748491064448,89.11208069,173.49,173.47,10.72594867]
[1748491065141,89.11208069,173.49,173.48,7.78831462]
[1748491066245,89.11208069,173.49,173.48,39.55266785]
[1748491066452,89.11208069,173.54,173.48,58.20231671]
[1748491066664,89.11208069,173.54,173.52,7.78831462]
[1748491066969,94.8744705,173.54,173.52,7.78831462]
[1748491067978,89.11208069,173.54,173.52,7.78831462]
[1748491070661,94.8745583,173.54,173.52,7.78831462]
[1748491071353,89.11208069,173.54,173.52,7.78831462]
[1748491071950,94.87446975,173.54,173.52,7.78831462]
[1748491072151,94.87446975,173.54,173.51,17.26831462]
[1748491073163,94.87446975,173.54,173.52,7.78831462]
[1748491073644,94.87446975,173.54,173.51,17.26831462]
[1748491076948,94.87446975,173.54,173.51,9.48]
[1748491077149,94.87446975,173.54,173.51,17.26831462]
[1748491078166,94.87446975,173.54,173.51,9.48]
[1748491078368,102.66278437,173.54,173.51,9.48]
[1748491078756,89.11208069,173.53,173.51,9.48]
[1748491079860,5.76302443,173.52,173.51,9.48]
[1748491081076,89.11208069,173.53,173.51,17.26831462]
[1748491081681,89.11208069,173.53,173.52,7.78831462]
[1748491082465,94.8731782,173.58,173.52,32.20098791]
[1748491082773,94.8731782,173.58,173.56,7.78831462]
[1748491082988,94.8731782,173.58,173.55,7.78831462]
[1748491083353,94.8731782,173.58,173.52,18.64964886]
[1748491083354,102.66149282,173.58,173.53,7.78831462]
[1748491083580,102.66149282,173.58,173.54,7.78831462]
[1748491083775,94.8731782,173.58,173.54,7.78831462]
[1748491084075,94.8731782,173.58,173.55,7.78831462]
[1748491087763,89.11208069,173.57,173.55,7.78831462]
[1748491089685,94.87345438,173.57,173.55,7.78831462]
[1748491090573,94.87345438,173.57,173.51,35.48]
[1748491090781,89.11208069,173.56,173.55,7.78831462]
[1748491098185,89.11208069,173.56,173.55,26.0]
[1748491098386,89.11208069,173.56,173.55,33.78831462]
[1748491102514,89.11208069,173.6,173.55,33.78831462]
[1748491102683,89.11208069,173.59,173.56,7.78831462]
[1748491103611,89.11208069,173.59,173.57,7.78831462]
[1748491106116,89.11208069,173.59,173.55,35.46]
[1748491106117,94.87284693,173.59,173.55,35.46]
[1748491106287,94.87284693,173.59,173.56,7.78831462]
[1748491106923,94.87284693,173.59,173.57,7.78831462]
[1748491107122,89.11208069,173.59,173.57,7.78831462]
[1748491107499,89.11208069,173.59,173.58,7.78831462]
[1748491109518,89.11208069,173.59,173.55,35.46]
[1748491109519,89.11208069,173.59,173.57,7.78831462]
[1748491113647,94.87279253,173.59,173.57,7.78831462]
[1748491114238,89.11208069,173.58,173.57,7.78831462]
[1748491115113,89.11208069,173.58,173.55,9.46]
[1748491115319,94.87311306,173.58,173.55,17.24831462]
[1748491115525,89.11208069,173.58,173.56,7.78831462]
[1748491120132,89.11208069,173.57,173.56,7.78831462]
[1748491121223,89.11208069,173.57,173.55,9.46]
[1748491121424,89.11208069,173.57,173.56,7.78831462]
[1748491129381,89.11208069,173.57,173.55,9.46]
[1748491129670,89.11208069,173.57,173.56,7.78831462]
[1748491130441,89.11208069,173.57,173.55,9.46]
[1748491130658,89.11208069,173.57,173.56,7.78831462]
[1748491133576,94.87344498,173.57,173.56,7.78831462]
[1748491133968,89.11208069,173.57,173.56,7.78831462]
[1748491135778,94.87344498,173.57,173.56,7.78831462]
[1748491137863,5.7607005,173.59,173.56,7.78831462]
[1748491138080,5.7607005,173.59,173.55,7.78831462]
[1748491139160,12.1785005,173.59,173.55,7.78831462]
[1748491139456,19.96681512,173.59,173.54,17.22831462]
[1748491142587,19.96681512,173.59,173.55,7.78831462]
[1748491142887,12.1785005,173.59,173.56,7.78831462]
[1748491143893,89.5,173.58,173.55,7.78831462]
[1748491144568,12.1785005,173.59,173.54,9.44]
[1748491144569,89.5,173.57,173.54,9.44]
[1748491144958,125.26,173.57,173.54,9.44]
[1748491146090,5.76169624,173.56,173.54,9.44]
[1748491146388,89.5,173.55,173.54,9.44]
[1748491147385,95.26202823,173.55,173.54,9.44]
[1748491148567,95.26202823,173.55,173.54,17.22831462]
[1748491149288,95.26202823,173.55,173.54,9.44]
[1748491149588,95.26202823,173.55,173.54,17.22831462]
[1748491149767,5.76169624,173.56,173.54,17.22831462]
[1748491151972,89.5,173.54,173.41,1.9373083]
[1748491152176,89.5,173.54,173.51,7.78831462]
[1748491152479,89.5,173.54,173.45,18.933972]
[1748491152480,89.5,173.54,173.52,7.78831462]
[1748491152697,89.5,173.54,173.48,18.64964886]
[1748491152698,89.5,173.54,173.5,9.44]
[1748491152863,89.5,173.54,173.52,7.78831462]
[1748491154722,5.76269232,173.53,173.5,17.22831462]
[1748491156018,5.76269232,173.53,173.5,9.44]
[1748491158101,5.76269232,173.53,173.5,17.22831462]
[1748491158501,131.02236953,173.54,173.51,7.78831462]
[1748491160232,125.26,173.54,173.52,7.78831462]
[1748491160525,148.5,173.58,173.53,7.78831462]
[1748491160701,35.76,173.57,173.54,7.78831462]
[1748491161013,148.5,173.58,173.54,7.78831462]
[1748491161324,89.5,173.57,173.56,7.78831462]
[1748491168852,89.5,173.57,173.53,27.5924]
[1748491169061,89.5,173.6,173.56,43.22831462]
[1748491169264,89.5,173.6,173.59,33.78831462]
[1748491172674,89.5,173.6,173.59,26.43796348]
[1748491172842,89.5,173.66,173.62,26.0]
[1748491173042,89.5,173.65,173.62,35.42]
[1748491173252,89.5,173.65,173.64,7.78831462]
[1748491174258,89.5,173.65,173.62,35.42]
[1748491174465,89.5,173.65,173.64,7.78831462]
[1748491176055,89.5,173.65,173.64,12.14718033]
[1748491176970,89.5,173.65,173.64,12.47416513]
[1748491180961,89.5,173.65,173.64,12.14718033]
[1748491183589,89.5,173.68,173.62,35.42]
[1748491183763,95.25783355,173.68,173.64,12.14718033]
[1748491183959,95.25783355,173.68,173.62,35.42]
[1748491184195,35.72,173.67,173.63,12.14718033]
[1748491184806,35.72,173.67,173.64,0.3264407]
[1748491185005,35.72,173.67,173.64,12.47362103]
[1748491185619,5.75837844,173.66,173.64,12.47362103]
[1748491186619,5.75837844,173.66,173.65,12.14718033]
[1748491188945,5.75837844,173.66,173.64,12.47362103]
[1748491191019,5.75837844,173.66,173.64,12.14718033]
[1748491194141,5.75837844,173.66,173.65,12.14718033]
[1748491197950,5.75837844,173.66,173.65,7.7756842]
[1748491200156,5.75837844,173.66,173.63,3.2675047]
[1748491200338,5.75837844,173.66,173.63,0.36394581]
[1748491203047,5.75837844,173.66,173.63,8.13963001]